Cogmind - Beta 16.1 @@@ ROGUE MODE // 2026.04.17 @ 18:53:32 Player: EdwardWolfeee Result: Destroyed by H-66 Slayer with Heavy Assault Rifle Performance ------------- Evolutions (5) 2500 Regions Visited (8) 1600 Robots Destroyed (48) 240 Value Destroyed (1875) 1875 Prototype IDs (0) 0 Alien Tech Used (0) 0 Bonus (223) 223 TOTAL SCORE: 6438 Bonus ------- Pacifist 200 High Alert Combat Kills 23 Cogmind --------- Core Integrity 0/1000 Matter 300/300 Energy 100/100 System Corruption 7% Temperature Cool (0) Movement Core (200) Ox3 Location -5/Factory Parts ------- > --- POWER (2) -------- (None) > --- PROPULSION (5) --- (None) > --- UTILITY (6) ------ Medium Storage Unit Melee Analysis Suite > --- WEAPON (4) ------- (None) > --- INVENTORY (10) --- (None) Peak State ------------ > --- POWER ------------ Improved Deuterium Engine Neutrino Core > --- PROPULSION ------- Aluminum Leg Aluminum Leg Titanium Leg Improved Titanium Leg Armored Leg > --- UTILITY ---------- Advanced Heat Sink Medium Storage Unit Melee Analysis Suite Improved Particle Charger Force Booster Improved Medium Armor Plating > --- WEAPON ----------- Improved Arc Projector Hypervelocity Coil Gun Assault Cannon Improved Proton Missile Launcher > --- INVENTORY -------- Nuclear Core Light Nuclear Core Light Fission Core Improved Heat Sink Beamcaster Power Maul Scythe Scythe Scythe [Rating: 69] Favorites ----------- Power Ion Engine Engine Ion Engine Power Core Light Nuclear Core Propulsion Aluminum Leg Leg Aluminum Leg Utility Melee Analysis Suite Device Force Booster Storage Medium Storage Unit Processor Melee Analysis Suite Protection Hardened Light Armor Plating Weapon Light Assault Rifle Energy Gun Beamcaster Ballistic Gun Light Assault Rifle Ballistic Cannon Assault Cannon Launcher Improved Proton Missile Launcher Impact Weapon Power Maul Slashing Weapon Scythe Build | -11 -10 -10 -9 -9 -8 -7 -6 -5 ------- Run | Yrd Mat Min Mat Min Mat Fac Fac Fac Slots Evolved 10 | . . . 2 . 2 2 2 2 Power 1 | . . . . . . . . 1 Propulsion 3 | . . . 2 . . . 1 . Utility 4 | . . . . . 1 1 1 1 Weapon 2 | . . . . . 1 1 . . Parts Attached 53 | 6 1 . 2 1 19 7 7 10 Power 9 | 1 . . . . 3 . 1 4 Engine 3 | 1 . . . . 1 . 1 . Core 6 | . . . . . 2 . . 4 Reactor . | . . . . . . . . . Propulsion 14 | 2 . . 2 . 5 4 1 . Treads . | . . . . . . . . . Leg 14 | 2 . . 2 . 5 4 1 . Wheel . | . . . . . . . . . Hover . | . . . . . . . . . Flight . | . . . . . . . . . Utility 14 | 1 1 . . 1 3 1 3 4 Device 6 | . . . . . 1 . 2 3 Storage 2 | 1 . . . . 1 . . . Processor 1 | . . . . . 1 . . . Hackware . | . . . . . . . . . Protection 5 | . 1 . . 1 . 1 1 1 Artifact . | . . . . . . . . . Weapon 16 | 2 . . . . 8 2 2 2 Energy Gun 5 | . . . . . 3 . 1 1 Energy Cannon . | . . . . . . . . . Ballistic Gun 5 | 2 . . . . 2 . . 1 Ballistic Cannon 1 | . . . . . . 1 . . Launcher 1 | . . . . . . . 1 . Special Weapon . | . . . . . . . . . Impact Weapon 1 | . . . . . . 1 . . Slashing Weapon 3 | . . . . . 3 . . . Piercing Weapon . | . . . . . . . . . Special Melee Weapon . | . . . . . . . . . Unidentified Prototypes . | . . . . . . . . . Parts Lost 32 | . . . . . 4 1 1 26 Power 7 | . . . . . 1 . . 6 Propulsion 7 | . . . . . 1 1 . 5 Utility 7 | . . . . . 1 . 1 5 Weapon 11 | . . . . . 1 . . 10 Highest Loss Streak 18 | . . . . . 2 1 1 18 To Critical Strikes . | . . . . . . . . . Average Backups 7 | 1 6 7 6 8 7 8 9 7 Power 1 | . 1 1 1 1 1 2 3 2 Propulsion 1 | . 3 4 3 3 3 1 . . Utility 1 | . . . . 1 1 2 2 . Weapon 2 | . 1 2 2 2 1 2 3 4 Tool/Special . | . . . . . . . . . Unused Backups 8 | . 2 . . 1 1 2 1 1 Power 2 | . . . . . . 1 1 . Propulsion 3 | . 2 . . 1 . . . . Utility 2 | . . . . . 1 1 . . Weapon 1 | . . . . . . . . 1 Tool/Special . | . . . . . . . . . Average Slot Usage (%) 93 | . 95 100 89 100 98 91 85 87 Engine 5 | . 14 14 11 11 5 . . 2 Core 3 | . . . . . 3 7 5 6 Leg 32 | . 28 28 33 44 35 30 29 23 Device 3 | . . . . . 4 . 1 14 Storage 8 | . 14 14 11 11 9 7 6 5 Processor 3 | . . . . . 3 7 6 5 Protection 8 | . 9 14 11 11 9 6 7 3 Energy Gun 1 | . . . . . 6 . 1 3 Ballistic Gun 11 | . 28 28 22 22 15 2 . 3 Ballistic Cannon 2 | . . . . . . 5 6 3 Impact Weapon 1 | . . . . . . 2 5 2 Slashing Weapon 6 | . . . . . 4 18 11 2 Peak Build Rating 69 | 6 7 7 9 10 26 38 52 69 Average Rating 27 | 5 6 7 8 9 20 32 41 56 On Entrance 16 | . 6 7 7 9 10 24 38 50 Avg Prop Armor Cover (%) 3 | . . . . . . 3 4 . Naked Turns . | . . . . . . . . . Heaviest Build 73 | 12 13 13 13 17 27 45 50 73 Greatest Support 73 | 20 20 20 40 40 45 57 73 73 Greatest Overweight (x) 3 | 3 . . . . . 1 . 3 Average Overweight (x) . | . . . . . . . . . Largest Inventory Capacity 10 | 8 8 8 8 8 10 10 10 10 Average Capacity 9 | 7 8 8 8 8 8 10 10 10 Most Carried 10 | 4 8 7 8 8 10 10 10 10 Average Carried 7 | 2 6 7 6 7 7 8 9 7 Final Capacity 10 | 8 8 8 8 8 10 10 10 10 Final Carried 10 | 4 7 7 8 8 10 10 8 . Class Distribution -------------------- 39% | Mutant 27% | Gladiator 11% | Scavenger-Gladiator 7% | Scavenger-Gunner 5% | Scavenger-Tank 4% | Scavenger-Mutant 3% | Tank Dominant Class ---------------- Mutant | -10/Materials Mutant | -10/Mines Mutant | -9/Materials Mutant | -9/Mines Scavenger-Tank | -8/Materials Gladiator | -7/Factory Gladiator | -6/Factory Scavenger-Gunner | -5/Factory Resources | -11 -10 -10 -9 -9 -8 -7 -6 -5 ----------- Run | Yrd Mat Min Mat Min Mat Fac Fac Fac Matter Collected 1515 | 197 . . 107 11 280 337 56 527 Remotely . | . . . . . . . . . Salvage Created 1895 | . . . 107 . 460 330 52 946 Parts 96 | . . . 12 . 25 12 2 45 Haulers Intercepted . | . . . . . . . . . Recyclers Shooed 2 | . . . . . . . . 2 Parts Field Recycled . | . . . . . . . . . Retrieved Matter . | . . . . . . . . . Parts Self-Destructed . | . . . . . . . . . Prevented . | . . . . . . . . . Parts Restored . | . . . . . . . . . Kills | -11 -10 -10 -9 -9 -8 -7 -6 -5 ------- Run | Yrd Mat Min Mat Min Mat Fac Fac Fac Combat Hostiles Destroyed 45 | . . . 3 . 13 7 1 21 Melee 13 | . . . . . 2 1 1 9 Guns 17 | . . . 3 . 11 1 . 2 Cannons 7 | . . . . . . 4 . 3 AOE 4 | . . . . . . . . 4 Classes Destroyed 8 | . . . 1 . 2 3 . 2 Worker 1 | . . . . . . . . 1 Tunneler 1 | . . . . . . . . 1 Recycler 1 | . . . . . . 1 . . Swarmer 17 | . . . . . 6 . . 11 Grunt 18 | . . . 3 . 6 3 . 6 Brawler 1 | . . . . . . 1 . . Sentry 5 | . . . . . 1 1 1 2 Programmer 4 | . . . . . . 2 . 2 Best Kill Streak 7 | . . . 3 . 3 4 1 7 Combat Bots Only 5 | . . . 3 . 3 4 1 5 Max Kills in Single Turn 3 | . . . 1 . 1 1 1 3 Gunslinging . | . . . . . . . . . Exploded 2 | . . . . . . . . 2 Melee 1 | . . . . . 1 1 1 1 Uniques/NPCs Destroyed . | . . . . . . . . . Combat | -11 -10 -10 -9 -9 -8 -7 -6 -5 -------- Run | Yrd Mat Min Mat Min Mat Fac Fac Fac Hostile Shots Fired 517 | . . 3 12 . 117 62 45 278 Missed 146 | . . 1 3 . 34 15 18 75 Hits 371 | . . 2 9 . 83 47 27 203 Melee 4 | . . . . . . 4 . . Projectile 367 | . . 2 9 . 83 43 27 203 Critical Strikes 11 | . . . . . 2 5 . 4 Part Disruptions 1 | . . . . . . 1 . . Damage Taken 5698 | . . 13 101 12 1016 732 208 3616 Core 1195 | . . . 19 . 93 77 . 1006 Absorbed by Shields . | . . . . . . . . . Redirected to Shielding 19 | . . . 4 . 15 . . . Core Remaining (%) 94 | 100 . 100 . 95 83 89 100 . Volleys Fired 117 | . . . 9 . 49 33 . 26 Largest 4 | . . . 2 . 3 3 . 4 Hottest 212 | . . . 40 . 135 135 . 212 Shots Fired 282 | . . . 18 . 133 47 1 83 Gun 213 | . . . 18 . 133 14 . 48 Cannon 58 | . . . . . . 33 1 24 Launcher 11 | . . . . . . . . 11 Special . | . . . . . . . . . Kinetic 197 | . . . 18 . 92 40 1 46 Thermal 52 | . . . . . 41 7 . 4 Explosive . | . . . . . . . . . Electromagnetic 33 | . . . . . . . . 33 Robot Hit Streak 17 | . . . 7 . 17 11 . 7 Robot Miss Streak 6 | . . . 1 . 6 2 . 5 Penetration Max 1 | . . . . . . . . 1 Secondary Targets . | . . . . . . . . . Shots Hit Robots 209 | . . . 14 . 82 36 7 70 Core Hits 96 | . . . 6 . 32 14 2 42 Critical Kills 1 | . . . . . . . . 1 Critical Parts Destroyed 14 | . . . . . 2 1 3 8 Critical Strikes 21 | . . . . . 3 3 3 12 Burn 1 | . . . . . 1 . . . Destroy 8 | . . . . . 2 . . 6 Blast 3 | . . . . . . 2 . 1 Smash 7 | . . . . . . 1 3 3 Sever 2 | . . . . . . . . 2 Melee Attacks 53 | . . . . . 7 3 8 35 Impact 27 | . . . . . . 1 5 21 Slashing 26 | . . . . . 7 2 3 14 Piercing . | . . . . . . . . . Sneak Attacks . | . . . . . . . . . Combat Hostiles . | . . . . . . . . . Follow-up Attacks 2 | . . . . . . . 2 . Damage Inflicted 4903 | . . . 123 . 991 897 234 2658 Guns 1504 | . . . 118 . 895 161 . 330 Cannons 1013 | . . . . . . 640 . 373 Explosions 883 | . . . . . . . . 883 Melee 1485 | . . . . . 96 96 234 1059 Ramming 18 | . . . 5 . . . . 13 Kinetic 1837 | . . . 118 . 507 715 . 497 Thermal 605 | . . . . . 388 86 . 131 Explosive . | . . . . . . . . . Electromagnetic 958 | . . . . . . . . 958 Impact 910 | . . . . . . 34 170 706 Slashing 575 | . . . . . 96 62 64 353 Piercing . | . . . . . . . . . Highest Corruption 7 | . . . . . . 3 2 7 Average Corruption 2 | . . . . . . 2 2 2 Corruption Purged . | . . . . . . . . . Corruption Blocked . | . . . . . . . . . Effects 14 | . . . . . . 7 5 2 Message Errors 6 | . . . . . . 2 2 2 Matter Fused 6 | . . . . . . 4 2 . Heat Flow Errors 1 | . . . . . . 1 . . Misfires 1 | . . . . . . . 1 . Overload Shots . | . . . . . . . . . Overflow Damage 353 | . . . . . . 60 101 192 Projectiles 52 | . . . . . . 26 . 26 Explosions 10 | . . . . . . . . 10 Melee 291 | . . . . . . 34 101 156 Knockbacks 14 | . . . . . . 9 . 5 Impact . | . . . . . . . . . Kinetic 14 | . . . . . . 9 . 5 Secondary . | . . . . . . . . . Self-Inflicted Damage 63 | . . . . . . . . 63 Shots 5 | . . . . . . . . 5 Rammed 7 | . . . . . . . . 7 Targets Rammed 8 | . . . 1 . . . . 7 Kicked 1 | . . . 1 . . . . . Crushed . | . . . . . . . . . Highest Temperature 438 | . . . 9 . 437 438 3 138 Average Temperature 166 | . . . 4 . 196 216 3 41 Received Heat Transfer 828 | . . . 54 . 351 123 66 234 Effects 12 | . . . . . 6 6 . . Shutdowns 4 | . . . . . 3 1 . . Energy Bleed 2 | . . . . . 1 1 . . Interference 4 | . . . . . 1 3 . . Short Circuit 1 | . . . . . . 1 . . Damage (minor) 1 | . . . . . 1 . . . Siege Activations . | . . . . . . . . . Martial Activations . | . . . . . . . . . Shielding Activations . | . . . . . . . . . Robots Disrupted . | . . . . . . . . . Combat Hostiles . | . . . . . . . . . Robots Corrupted 4 | . . . . . . 1 . 3 Combat Hostiles 4 | . . . . . . 1 . 3 Parts Fried 4 | . . . . . . . 1 3 Impact Corruptions 9 | . . . . . . 1 3 5 Robots Melted . | . . . . . . . . . Combat Hostiles . | . . . . . . . . . Parts Melted 1 | . . . . . 1 . . . Heat Transferred 1063 | . . . . . 791 148 . 124 Parts Sabotaged . | . . . . . . . . . Parts Stolen . | . . . . . . . . . Parts Stripped . | . . . . . . . . . Power Chain Reactions . | . . . . . . . . . Alert | -11 -10 -10 -9 -9 -8 -7 -6 -5 ------- Run | Yrd Mat Min Mat Min Mat Fac Fac Fac Maximum Alert Level 2 | . . . . . . . . 2 Low Security (%) 89 | 100 100 100 100 100 100 100 100 40 Level 1 9 | . . . . . . . . 52 Level 2 1 | . . . . . . . . 6 Level 3 . | . . . . . . . . . Level 4 . | . . . . . . . . . Level 5 . | . . . . . . . . . High Security . | . . . . . . . . . Max Security . | . . . . . . . . . Peak Influence 421 | . . . 60 15 100 70 30 421 Initial 29 | . . . . 15 . 29 . . Average 50 | . . . 24 . 64 13 2 209 Influence Increases 1434 | . . . 70 . 330 185 30 819 Destroy 0b10 Robot/C 900 | . . . 60 . 260 140 20 420 Destroy 0b10 Robot/NC 15 | . . . . . . 5 . 10 Destroy Leader 180 | . . . 10 . 40 40 10 80 Disable Machine 105 | . . . . . . . . 105 Destroy Structure 84 | . . . . . . . . 84 Lose Combat Pursuer 150 | . . . . . 30 . . 120 Influence Decreases 1087 | . . . 30 40 264 251 30 472 Entered New Map 62 | . . . . 25 . 37 . . Time Decay 715 | . . . 30 15 224 204 30 212 Lost Part 310 | . . . . . 40 10 . 260 Squads Dispatched 10 | . . . 1 . 1 2 1 5 Investigation . | . . . . . . . . . Extermination 4 | . . . . . . 2 1 1 Reinforcement 4 | . . . 1 . 1 . . 2 Assault . | . . . . . . . . . Garrison 2 | . . . . . . . . 2 Intercept . | . . . . . . . . . Searches Triggered . | . . . . . . . . . Construction Impeded 2 | . . . . . 1 . . 1 Haulers Reinforced . | . . . . . . . . . Active Scanning Responses . | . . . . . . . . . Cargo Convoy Interrupts . | . . . . . . . . . Stealth | -11 -10 -10 -9 -9 -8 -7 -6 -5 --------- Run | Yrd Mat Min Mat Min Mat Fac Fac Fac Distress Signals 7 | . . . . . 4 . . 3 Communications Jammed . | . . . . . . . . . Distress Signals . | . . . . . . . . . Times Spotted 88 | . 2 3 4 . 25 8 1 45 Peak Tracking Total 7 | . 1 3 2 . 5 4 1 7 Tactical Retreats 6 | . . . . . 2 . . 4 Traps | -11 -10 -10 -9 -9 -8 -7 -6 -5 ------- Run | Yrd Mat Min Mat Min Mat Fac Fac Fac Traps Triggered 5 | . . . . . . . 2 3 Indirectly 2 | . . . . . . . . 2 Trap Hack Attempts . | . . . . . . . . . Triggered . | . . . . . . . . . Disarmed . | . . . . . . . . . Reprogrammed . | . . . . . . . . . Reused . | . . . . . . . . . Traps Extracted . | . . . . . . . . . Installed . | . . . . . . . . . Triggered . | . . . . . . . . . Machines | -11 -10 -10 -9 -9 -8 -7 -6 -5 ---------- Run | Yrd Mat Min Mat Min Mat Fac Fac Fac Machines Disabled 7 | . . . . . . . . 7 Max in Single Turn 3 | . . . . . . . . 3 Machines Repaired . | . . . . . . . . . Machines Dismantled . | . . . . . . . . . Machines Sabotaged . | . . . . . . . . . Overloaded Fab Kills . | . . . . . . . . . Hacking | -11 -10 -10 -9 -9 -8 -7 -6 -5 --------- Run | Yrd Mat Min Mat Min Mat Fac Fac Fac Machines Accessed 3 | . . . . 1 . 1 . 1 Terminals 2 | . . . . . . 1 . 1 Fabricators . | . . . . . . . . . Repair Stations . | . . . . . . . . . Recycling Units . | . . . . . . . . . Scanalyzers . | . . . . . . . . . Garrison Access . | . . . . . . . . . Total Hacks 3 | . . . . 1 . 1 . 1 Successful 1 | . . . . 1 . . . . Failed 2 | . . . . . . 1 . 1 Catastrophic 2 | . . . . . . 1 . 1 Database Lockouts . | . . . . . . . . . Manual . | . . . . . . . . . Terminals 2 | . . . . . . 1 . 1 Fabricators . | . . . . . . . . . Repair Stations . | . . . . . . . . . Recycling Units . | . . . . . . . . . Scanalyzers . | . . . . . . . . . Garrison Access . | . . . . . . . . . Terminal Hacks 1 | . . . . 1 . . . . Open Door 1 | . . . . 1 . . . . Fabricator Hacks . | . . . . . . . . . Repair Station Hacks . | . . . . . . . . . Recycling Unit Hacks . | . . . . . . . . . Scanalyzer . | . . . . . . . . . Garrison Access Hacks . | . . . . . . . . . Unauthorized Hacks . | . . . . . . . . . Terminals . | . . . . . . . . . Fabricators . | . . . . . . . . . Repair Stations . | . . . . . . . . . Recycling Units . | . . . . . . . . . Scanalyzers . | . . . . . . . . . Garrison Access . | . . . . . . . . . Data Cores Recovered . | . . . . . . . . . Used . | . . . . . . . . . Hacking Detections 2 | . . . . . . 1 . 1 Full Trace Events . | . . . . . . . . . Feedback Events . | . . . . . . . . . Feedback Blocked . | . . . . . . . . . Robot Schematics Acquired . | . . . . . . . . . Robots Built . | . . . . . . . . . Authchips . | . . . . . . . . . Time . | . . . . . . . . . Total Robot Build Rating . | . . . . . . . . . Part Schematics Acquired . | . . . . . . . . . Parts Built . | . . . . . . . . . Authchips . | . . . . . . . . . Time . | . . . . . . . . . Total Part Build Rating . | . . . . . . . . . Part Studies Acquired . | . . . . . . . . . Parts Repaired . | . . . . . . . . . Time . | . . . . . . . . . Parts Recycled . | . . . . . . . . . Recycled Matter . | . . . . . . . . . Retrieved Matter . | . . . . . . . . . Retrieved Components . | . . . . . . . . . Parts Scanalyzed . | . . . . . . . . . Part Schematics Acquired . | . . . . . . . . . Parts Damaged . | . . . . . . . . . Bothacking | -11 -10 -10 -9 -9 -8 -7 -6 -5 ------------ Run | Yrd Mat Min Mat Min Mat Fac Fac Fac Used RIF Installer . | . . . . . . . . . Robots Hacked . | . . . . . . . . . Non-combat . | . . . . . . . . . Combat . | . . . . . . . . . Robot Hacks Applied . | . . . . . . . . . Relay Couplers Released . | . . . . . . . . . Fabnet Peak Effective % . | . . . . . . . . . Robots Rewired . | . . . . . . . . . Allies Hacked . | . . . . . . . . . Hacks Repelled . | . . . . . . . . . Allies | -11 -10 -10 -9 -9 -8 -7 -6 -5 -------- Run | Yrd Mat Min Mat Min Mat Fac Fac Fac Total Allies . | . . . . . . . . . Largest Group . | . . . . . . . . . Highest-Rated Group . | . . . . . . . . . Highest-Rated Ally . | . . . . . . . . . Total Orders . | . . . . . . . . . Ally Attacks . | . . . . . . . . . Total Damage . | . . . . . . . . . Kills . | . . . . . . . . . Allies Corrupted . | . . . . . . . . . Allies Melted . | . . . . . . . . . Intel | -11 -10 -10 -9 -9 -8 -7 -6 -5 ------- Run | Yrd Mat Min Mat Min Mat Fac Fac Fac Active Infowar (turns) . | . . . . . . . . . Robot Analysis Total . | . . . . . . . . . Derelict Logs Recovered . | . . . . . . . . . Drone Launches . | . . . . . . . . . Drone Recoveries . | . . . . . . . . . Exploration | -11 -10 -10 -9 -9 -8 -7 -6 -5 ------------- Run | Yrd Mat Min Mat Min Mat Fac Fac Fac Turns Passed 3763 | 82 194 119 115 835 549 891 312 666 Spaces Moved 1792 | 53 156 100 72 191 220 495 201 304 Core 24 | 13 . . . . . . . 11 Treads . | . . . . . . . . . Legs 1768 | 40 156 100 72 191 220 495 201 293 Wheels . | . . . . . . . . . Hover . | . . . . . . . . . Flight . | . . . . . . . . . Fastest Speed 50 | 50 120 120 120 120 120 120 124 124 Average Speed 129 | 130 120 120 120 120 120 144 124 129 Slowest Speed 200 | 200 120 120 120 120 120 190 125 200 Overloaded Moves . | . . . . . . . . . Propulsion Burnouts . | . . . . . . . . . Robots Hopped . | . . . . . . . . . Potential Cave-ins . | . . . . . . . . . Cave-ins Triggered . | . . . . . . . . . Exploration Rate (%) 18 | 3 26 36 8 51 14 16 5 9 Regions Visited 8 Branch Regions 2 Pre-discovered Areas . | . . . . . . . . . Known Exits Taken . | . . . . . . . . . Unknown Exits Taken 8 | 1 1 1 1 1 1 1 1 . Scrap Searched 1 | . . . . 1 . . . . Spaces Dug . | . . . . . . . . . Terrain Destroyed 47 | . . . . . . . . 47 Melee . | . . . . . . . . . Projectile . | . . . . . . . . . AOE 46 | . . . . . . . . 46 Terrain Rammed . | . . . . . . . . . Walls Destroyed . | . . . . . . . . . Machines Disabled . | . . . . . . . . . Actions | -11 -10 -10 -9 -9 -8 -7 -6 -5 --------- Run | Yrd Mat Min Mat Min Mat Fac Fac Fac Total 2941 | 62 163 99 86 798 408 627 251 447 Wait 821 | . . . . 603 86 66 26 40 Move 1784 | 52 155 99 71 190 219 494 200 304 Hop . | . . . . . . . . . Pick Up 46 | 4 5 . 3 2 10 11 5 6 Fast Attach 11 | 6 1 . . . 3 . 1 . Attach 30 | . . . 2 1 6 4 4 13 Detach 1 | . . . . . . 1 . . Swap 36 | . . . . . 13 7 7 9 Drop 33 | . 2 . . 2 15 8 3 3 Fire 117 | . . . 9 . 49 33 . 26 Melee 48 | . . . . . 7 3 5 33 Ram 7 | . . . . . . . . 7 Kick 1 | . . . 1 . . . . . Crush . | . . . . . . . . . Escape Stasis 5 | . . . . . . . . 5 Rewire 1 | . . . . . . . . 1 Trap . | . . . . . . . . . Miscellaneous . | . . . . . . . . . Route ------- -11/Scrapyard -10/Materials -10/Mines -9/Materials -9/Mines -8/Materials -7/Factory -6/Factory -5/Factory (discovered 1 exit: [*Upp]) History --------- Turn | Location | Event 26 | -11/Scrapyard | Discovered new exit (range 14) 83 | -11/Scrapyard | Entered Materials 252 | -10/Materials | Discovered new exit (range 16) 277 | -10/Materials | Entered Mines 318 | -10/Mines | Build established: Mutant 390 | -10/Mines | Discovered new exit (range 5) 396 | -10/Mines | Entered Materials 396 | -9/Materials | Evolved 2 slots: Propulsion x2 466 | -9/Materials | Discovered new exit (range 9) 511 | -9/Materials | Entered Mines 644 | -9/Mines | Met a Derelict who couldn't figure out how to use a Trap Extractor 1332 | -9/Mines | Discovered new exit (range 10) 1346 | -9/Mines | Entered Materials 1346 | -8/Materials | Evolved 2 slots: Utility x1, Weapon x1 1890 | -8/Materials | Discovered new exit (range 3) 1895 | -8/Materials | Entered Factory 1895 | -7/Factory | Evolved 2 slots: Utility x1, Weapon x1 2557 | -7/Factory | Build established: Gladiator 2778 | -7/Factory | Discovered new exit (range 6) 2786 | -7/Factory | Entered another Factory area 2786 | -6/Factory | Evolved 2 slots: Propulsion x1, Utility x1 2976 | -6/Factory | Discovered new exit (range 6) 3098 | -6/Factory | Entered another Factory area 3098 | -5/Factory | Evolved 2 slots: Power x1, Utility x1 3131 | -5/Factory | Discovered new exit (range 3) 3572 | -5/Factory | Garrison activated, responded to threat 3628 | -5/Factory | Lost 5 parts (2n1u2w) 3717 | -5/Factory | Core integrity fell below 50% 3739 | -5/Factory | Core integrity fell below 20% 3761 | -5/Factory | Lost 18 parts (5p3n3u7w) 3764 | -5/Factory | Destroyed by H-66 Slayer with Heavy Assault Rifle Last Messages --------------- Destabilizing: System corrupted (+2). R-10 Processor collects Adv. Heat Sink. K-01 Serf cleans the Power Conduit. R-10 Processor collects Lgt. Nuclear Core. Slammed into S-27 Virus. R-10 Processor collects Lgt. Nuclear Core. Slug penetrates Power Conduit. Slammed into S-27 Virus. R-10 Processor collects Autogun. Slammed into S-27 Virus. K-01 Serf cleans the Power Conduit. R-10 Processor collects Imp. Medium Armor Plating. R-10 Processor collects Imp. Treads. Slammed into S-27 Virus. Destabilizing: System corrupted (+2). K-01 Serf cleans the Power Conduit. Penetrated by Slug. S-27 Virus destroyed. Penetrated by Slug. Map ----- +----------------------------------------------------+ | ?????????????????????????????????????????????????? | | ?????????????????????????????????????????????????? | | ?????????????????????????????????????????????????? | | ?????????????????????????????????????????????????? | | ?????????????????????????????????????????????????? | | ?????????????????????????????????????????????????? | | ?????????????????????????????????????????????????? | | ?????????????????????????????????????????????????? | | ?????????????????????????????????????????????????? | | ?????????????????????????????????????????????????? | | ?????????????????????????????????????????????????? | | ?????????????????????????????????????????????????? | | ?????????????????????????????????????????????????? | | ?????????????????????????????????????????????????? | | ?????????????????????????????????????????????????? | | ?????????????????????????????????????????????????? | | ?????????????????????????????????????????????????? | | ?????????????????????###+###?????????????????????? | | ?????????????????????# ########??????????????? | | ???????????????####### k ???????????????? | | ???????????????? t k ???????????????? | | ?????????###?????#u ????????????????? | | ????????? ????# """"""""" #?????????????????? | | ????????? ????# #?????????????????? | | ????????# ???#k """"""""" #?????????????????? | | ????????# "" ???# h%%%%@%%[= #?????????????????? | | ?????????""" ??# """"""""" #?????????????????? | | ??????????R ??# k u #?????????????????? | | ???????????? ?# u o ???????????????? | | ????????????? ?# ####### ??????????????? | | ?????????????? #% u #??????? ??????????????? | | ??????############% % #???????????????????????? | | # [ R% % #??????????#####????##### | | ??????############+##### ############ #????# """ | | ????????????????## ==#?#k #????# | | ?????????????????#%=*#?# ##### #????# | | ??????????########[= ### #???# #????# | | ??????????# =+ # # #???# ###??##### | | ??????????# #! ### #???# #??????# | | ??????????# "" # #?# #???# ####### #??????# | | ??????????# "Y # #?# #???# #?????# ######## | | ??????????# "" #####?# #???# #?????# | | ??????????# #?????# #???# #?????########## | | ??????????#####/##?????? ????# #??????????????? | | ?????????????? ???????? ????#+##+#??????????????? | | ?????????????? ???????? ????????????????????????? | | ?????????????? "???????? ????????????????????????? | | ????????????? ???????? ????????????????????????? | | ????????????? ???????? ????????????????????????? | | ?????????????##+???????? ????????????????????????? | +----------------------------------------------------+ Best States ------------- Heat Dissipation 73 Energy Generation 30 Energy Capacity 505 Matter Stores 300 Matter Capacity 300 Sight Range 16 Terrain Scan Density 10 Armor Coverage 825 Core Shielding 20 Evasion (%) 55 Melee Accuracy 5 Particle Charging 20 Force Boost 20 Item Schematics ----------------- None Robot Schematics ------------------ None Fabricated ------------ Nothing Repaired ---------- Nothing Studied --------- None Alien Tech Used ----------------- None Achievements -------------- None Challenges ------------ None Game ------ Seed RemoteRapidBay Manual? 0 Play Time 01:04:48 Cumulative 8.3 hours Start 2026.04.17 @ 01:10:57 End 2026.04.17 @ 18:53:32 Sessions 3 Manual Loads 0 Difficulty Rogue Special Mode None Game No. 17 Rogue 17 Adventurer 0 Explorer 0 Win Type - Total 0 Types 0/0/0/0/0/0/0/0/0/0 Lore% 0 Gallery% 11 Achievement% 10 Wizard Run 0 Options --------- Layout 1 ASCII 0 Keyboard 0 Movement Mouse Keybinds 0 Fullscreen 1 Font 36/Smallcaps Map View 50x40 Zoom Use 0% Tactical HUD 0 Map Filters NONE Filters NONE Steam 1 RUN: cb5125e9-dc37-4c73-9ca4-8faa16555a0e